lending/lending_fUSD_20241120
["ID","MTS","AMOUNT","RATE_DAILY","PERIOD"]
[342727452,1732086733620,-500.0,0.00059178,120]
[342727453,1732086733630,-2844.38,0.00059178,120]
[342727454,1732086733640,-1035.53,0.00059178,120]
[342727455,1732086733649,-1318.23,0.00059178,120]
[342727456,1732086733659,-400.36,0.00059178,7]
[342727457,1732086733668,-503.21,0.00059178,120]
[342727458,1732086733677,-500.0,0.00059178,120]
[342727459,1732086733687,-150.0,0.00059178,120]
[342727460,1732086733696,-500.0,0.00059178,120]
[342727461,1732086733705,-500.0,0.00059178,120]
[342727462,1732086733715,-361.61690162,0.00059178,120]
[342727463,1732086733724,-2000.0,0.00059178,120]
[342727464,1732086733733,-2333.06,0.00059178,120]
[342727465,1732086733742,-583.39915957,0.00059178,120]
[342727466,1732086733752,-500.0,0.00059178,120]
[342727467,1732086733761,-500.0,0.00059178,120]
[342727468,1732086733770,-500.0,0.00059178,120]
[342727469,1732086733780,-3055.61,0.00059178,120]
[342727470,1732086733789,-500.0,0.00059178,120]
[342727471,1732086733799,-3168.55,0.00059178,120]
[342727472,1732086733810,-1697.92,0.00059178,120]
[342727473,1732086733821,-500.0,0.00059178,120]
[342727474,1732086733831,-500.0,0.00059178,120]
[342727475,1732086733841,-522.14208113,0.00059178,120]
[342727476,1732086733852,-500.0,0.00059178,120]
[342727477,1732086733862,-500.0,0.00059178,120]
[342727478,1732086733874,-659.42,0.00059178,120]
[342727479,1732086733884,-2717.09,0.00059178,120]
[342727480,1732086733893,-500.0,0.00059178,120]
[342727481,1732086733903,-500.0,0.00059178,120]
[342727482,1732086733912,-798.52,0.00059178,120]
[342727483,1732086733921,-982.26,0.00059178,120]
[342727484,1732086733931,-707.74,0.00059178,120]
[342727485,1732086733941,-4470.82,0.00059178,120]
[342727486,1732086733951,-500.0,0.00059178,120]
[342727487,1732086733960,-650.76,0.00059178,21]
[342727488,1732086733971,-2268.24,0.00059178,120]
[342727489,1732086733980,-3957.68,0.00059178,60]
[342727490,1732086733990,-717.59,0.00059178,120]
[342727491,1732086734001,-3094.65,0.00059178,120]
[342727492,1732086734011,-1598.98008687,0.00059178,120]
[342727493,1732086734021,-998.06,0.00059178,120]
[342727494,1732086734030,-1516.88,0.00059178,120]
[342727495,1732086734040,-617.47,0.00059178,120]
[342727496,1732086734051,-2604.2,0.00059178,120]
[342727497,1732086734062,-500.17,0.00059178,120]
[342727498,1732086734071,-635.36,0.00059178,120]
[342727499,1732086734081,-700.75,0.00059178,120]
[342727500,1732086734090,-500.0,0.00059178,120]
[342727501,1732086734100,-505.72,0.00059178,120]
[342727502,1732086734110,-500.0,0.00059178,120]
[342727503,1732086734122,-1116.28216149,0.00059178,120]
[342727504,1732086734131,-3206.56,0.00059178,120]
[342727505,1732086734141,-946.93,0.00059178,120]
[342727506,1732086734150,-508.31,0.00059178,120]
[342727507,1732086734161,-2581.57,0.00059178,120]
[342727508,1732086734171,-1301.4,0.00059178,120]
[342727509,1732086734182,-5192.93,0.00059178,120]
[342727510,1732086734193,-852.9,0.00059178,120]
[342727511,1732086734202,-2774.17,0.00059178,120]
[342727512,1732086734212,-3061.68,0.00059178,120]
[342727513,1732086734221,-500.0,0.00059178,120]
[342727514,1732086734230,-2031.6,0.00059178,120]
[342727515,1732086734240,-2936.91,0.00059178,120]
[342727516,1732086734250,-500.0,0.00059178,120]
[342727517,1732086734260,-720.2,0.00059178,120]
[342727518,1732086734268,-2810.53,0.00059178,120]
[342727519,1732086734280,-1822.63,0.00059178,120]
[342727520,1732086734291,-1273.99,0.00059178,120]
[342727521,1732086734301,-850.0,0.00059178,120]
[342727522,1732086734310,-711.44,0.00059178,120]
[342727523,1732086734325,-729.82,0.00059178,120]
[342727524,1732086734334,-2955.44,0.00059178,120]
[342727525,1732086734343,-2080.78,0.00059178,120]
[342727526,1732086734352,-1918.47,0.00059178,120]
[342727527,1732086734362,-606.63,0.00059178,120]
[342727528,1732086734374,-500.0,0.00059178,120]
[342727529,1732086734383,-1137.2,0.00059178,3]
[342727530,1732086734393,-2847.53,0.00059178,120]
[342727531,1732086734403,-500.0,0.00059202,120]
[342727532,1732086734413,-500.0,0.00059202,120]
[342727533,1732086734423,-800.0,0.00059202,120]
[342727534,1732086734432,-1900.0,0.00059202,120]
[342727535,1732086734442,-500.0,0.000594,120]
[342727536,1732086734452,-2000.0,0.00059452,120]
[342727537,1732086734461,-500.0,0.00059452,120]
[342727538,1732086734470,-267.75126489,0.00059452,14]
[342727539,1732086734479,-263.26079848,0.00059452,7]
[342727540,1732086734488,-966.97,0.00059452,120]
[342727541,1732086734498,-1703.66,0.00059452,120]
[342727542,1732086734508,-500.0,0.00059452,120]
[342727543,1732086734518,-2720.0,0.00059452,120]
[342727544,1732086734527,-500.0,0.00059452,120]
[342727545,1732086734537,-829.63,0.00059452,120]
[342727546,1732086734547,-620.27,0.00059452,120]
[342727547,1732086734556,-2345.32,0.00059452,120]
[342727548,1732086734565,-500.0,0.00059452,120]
[342727549,1732086734575,-1166.49,0.00059452,120]
[342727550,1732086734584,-734.6,0.00059452,120]
[342727551,1732086734595,-379.4143519,0.00059452,120]
[342727552,1732086734605,-2844.38,0.00059452,120]
[342727553,1732086734748,-1035.53,0.00059452,120]
[342727554,1732086734757,-1318.23,0.00059452,120]
[342727555,1732086734767,-400.36,0.00059452,7]
[342727556,1732086734776,-503.21,0.00059452,120]
[342727557,1732086734785,-500.0,0.00059452,120]
[342727558,1732086734794,-150.0,0.00059452,120]
[342727559,1732086734803,-308.03302816,0.00059452,120]
[342727560,1732086734812,-336.83368521,0.00059452,120]
[342727561,1732086734822,-2000.0,0.00059452,120]
[342727562,1732086734831,-2333.06,0.00059452,120]
[342727563,1732086734840,-531.17707847,0.00059452,120]
[342727564,1732086734850,-500.0,0.00059452,120]
[342727565,1732086734859,-500.0,0.00059452,120]
[342727566,1732086734871,-3055.61,0.00059452,120]
[342727567,1732086734880,-434.59447166,0.00059452,120]
[342727568,1732086734890,-3168.55,0.00059452,120]
[342727569,1732086734900,-1697.92,0.00059452,120]
[342727570,1732086734909,-500.0,0.00059452,120]
[342727571,1732086734919,-500.0,0.00059452,120]
[342727572,1732086734928,-500.0,0.00059452,120]
[342727573,1732086734939,-500.0,0.00059452,120]
[342727574,1732086734948,-659.42,0.00059452,120]
[342727575,1732086734958,-2717.09,0.00059452,120]
[342727576,1732086734967,-500.0,0.00059452,120]
[342727577,1732086734976,-500.0,0.00059452,120]
[342727578,1732086734985,-798.52,0.00059452,120]
[342727579,1732086734994,-982.26,0.00059452,120]
[342727580,1732086735004,-707.74,0.00059452,120]
[342727581,1732086735015,-4470.82,0.00059452,120]
[342727582,1732086735025,-500.0,0.00059452,120]
[342727583,1732086735034,-650.76,0.00059452,21]
[342727584,1732086735043,-2268.24,0.00059452,120]
[342727585,1732086735053,-3957.68,0.00059452,60]
[342727586,1732086735062,-717.59,0.00059452,120]
[342727587,1732086735071,-3094.65,0.00059452,120]
[342727588,1732086735080,-998.06,0.00059452,120]
[342727589,1732086735089,-1516.88,0.00059452,120]
[342727590,1732086735100,-617.47,0.00059452,120]
[342727591,1732086735111,-2604.2,0.00059452,120]
[342727592,1732086735123,-500.17,0.00059452,120]
[342727593,1732086735132,-635.36,0.00059452,120]
[342727594,1732086735141,-700.75,0.00059452,120]
[342727595,1732086735150,-500.0,0.00059452,120]
[342727596,1732086735160,-505.72,0.00059452,120]
[342727597,1732086735169,-500.0,0.00059452,120]
[342727598,1732086735179,-3206.56,0.00059452,120]
[342727599,1732086735190,-946.93,0.00059452,120]
[342727600,1732086735199,-508.31,0.00059452,120]
[342727601,1732086735208,-2581.57,0.00059452,120]
[342727602,1732086735218,-1301.4,0.00059452,120]
[342727603,1732086735228,-5192.93,0.00059452,120]
[342727604,1732086735237,-852.9,0.00059452,120]
[342727605,1732086735247,-2774.17,0.00059452,120]
[342727606,1732086735256,-3061.68,0.00059452,120]
[342727607,1732086735265,-500.0,0.00059452,120]
[342727608,1732086735274,-2031.6,0.00059452,120]
[342727609,1732086735285,-2936.91,0.00059452,120]
[342727610,1732086735294,-500.0,0.00059452,120]
[342727611,1732086735303,-720.2,0.00059452,120]
[342727612,1732086735313,-2810.53,0.00059452,120]
[342727613,1732086735326,-1822.63,0.00059452,120]
[342727614,1732086735335,-1273.99,0.00059452,120]
[342727615,1732086735345,-850.0,0.00059452,120]
[342727616,1732086735354,-711.44,0.00059452,120]
[342727617,1732086735366,-729.82,0.00059452,120]
[342727618,1732086735377,-2955.44,0.00059452,120]
[342727619,1732086735386,-2080.78,0.00059452,120]
[342727620,1732086735396,-1918.47,0.00059452,120]
[342727621,1732086735406,-606.63,0.00059452,120]
[342727622,1732086735417,-500.0,0.00059452,120]
[342727623,1732086735427,-1137.2,0.00059452,3]
[342727624,1732086735437,-2847.53,0.00059452,120]
[342727625,1732086735447,-500.0,0.00059476,120]
[342727626,1732086735456,-800.0,0.00059476,120]
[342727627,1732086735465,-1900.0,0.00059476,120]
[342727628,1732086735475,-385.0,0.00059497,30]
[342727629,1732086735484,-162.12,0.00059577,120]
[342727630,1732086735493,-500.0,0.000596,59]
[342727631,1732086735502,-500.0,0.000596,59]
[342727632,1732086735511,-500.0,0.000596,59]
[342727633,1732086735521,-500.0,0.000596,59]
[342727634,1732086735530,-500.0,0.000596,59]
[342727635,1732086735539,-500.0,0.000596,59]
[342727636,1732086735548,-500.0,0.000596,59]
[342727637,1732086735559,-500.0,0.000596,59]
[342727638,1732086735567,-500.0,0.000596,75]
[342727639,1732086735578,-200.0,0.000596,50]
[342727640,1732086735588,-500.0,0.000596,59]
[342727641,1732086735597,-500.0,0.000596,59]
[342727642,1732086735607,-500.0,0.000596,59]
[342727643,1732086735617,-500.0,0.000596,59]
[342727644,1732086735626,-500.0,0.000596,59]
[342727645,1732086735636,-500.0,0.000596,59]
[342727646,1732086735644,-500.0,0.000596,59]
[342727647,1732086735653,-500.0,0.000596,59]
[342727648,1732086735664,-500.0,0.000596,75]
[342727649,1732086735676,-2000.0,0.00059726,120]
[342727650,1732086735688,-500.0,0.00059726,120]
[342727651,1732086735697,-966.97,0.00059726,120]
[342727652,1732086735708,-1703.66,0.00059726,120]
[342727653,1732086735718,-255.08567863,0.00059726,120]
[342727654,1732086735727,-2720.0,0.00059726,120]
[342727655,1732086735739,-500.0,0.00059726,120]
[342727656,1732086735748,-829.63,0.00059726,120]
[342727657,1732086735758,-620.27,0.00059726,120]
[342727658,1732086735767,-2345.32,0.00059726,120]
[342727659,1732086735776,-600.86213703,0.00059726,120]
[342727660,1732086735785,-1166.49,0.00059726,120]
[342727661,1732086735794,-734.6,0.00059726,120]
[342727662,1732086735803,-2844.38,0.00059726,120]
[342727663,1732086735812,-1035.53,0.00059726,120]
[342727664,1732086735821,-1318.23,0.00059726,120]
[342727665,1732086735831,-400.36,0.00059726,7]
[342727666,1732086735840,-503.21,0.00059726,120]
[342727667,1732086735850,-299.74360854,0.00059726,120]
[342727668,1732086735860,-150.0,0.00059726,120]
[342727669,1732086735872,-2000.0,0.00059726,120]
[342727670,1732086735882,-2333.06,0.00059726,120]
[342727671,1732086735892,-500.0,0.00059726,120]
[342727672,1732086735901,-500.0,0.00059726,120]
[342727673,1732086735911,-3055.61,0.00059726,120]
[342727674,1732086735921,-3168.55,0.00059726,120]
[342727675,1732086735930,-1697.92,0.00059726,120]
[342727676,1732086735940,-500.0,0.00059726,120]
[342727677,1732086735949,-500.0,0.00059726,120]
[342727678,1732086735959,-360.04116191,0.00059726,120]
[342727679,1732086735970,-500.0,0.00059726,120]
[342727680,1732086735979,-659.42,0.00059726,120]
[342727681,1732086735991,-2717.09,0.00059726,120]
[342727682,1732086736001,-500.0,0.00059726,120]
[342727683,1732086736011,-552.92443812,0.00059726,120]
[342727684,1732086736021,-798.52,0.00059726,120]
[342727685,1732086736031,-982.26,0.00059726,120]
[342727686,1732086736043,-707.74,0.00059726,120]
[342727687,1732086736053,-4470.82,0.00059726,120]
[342727688,1732086736064,-500.0,0.00059726,120]
[342727689,1732086736075,-650.76,0.00059726,21]
[342727690,1732086736084,-2268.24,0.00059726,120]
[342727691,1732086736095,-3957.68,0.00059726,60]
[342727692,1732086736104,-717.59,0.00059726,120]
[342727693,1732086736113,-3094.65,0.00059726,120]
[342727694,1732086736124,-998.06,0.00059726,120]
[342727695,1732086736134,-1516.88,0.00059726,120]
[342727696,1732086736143,-617.47,0.00059726,120]
[342727697,1732086736152,-2604.2,0.00059726,120]
[342727698,1732086736162,-500.17,0.00059726,120]
[342727699,1732086736172,-635.36,0.00059726,120]
[342727700,1732086736182,-700.75,0.00059726,120]
[342727701,1732086736191,-477.16953103,0.00059726,120]
[342727702,1732086736201,-505.72,0.00059726,120]
[342727703,1732086736210,-500.0,0.00059726,120]
[342727704,1732086736220,-3206.56,0.00059726,120]
[342727705,1732086736230,-946.93,0.00059726,120]
[342727706,1732086736239,-508.31,0.00059726,120]
[342727707,1732086736248,-2581.57,0.00059726,120]
[342727708,1732086736258,-1301.4,0.00059726,120]
[342727709,1732086736268,-5192.93,0.00059726,120]
[342727710,1732086736277,-852.9,0.00059726,120]
[342727711,1732086736286,-2774.17,0.00059726,120]
[342727712,1732086736295,-3061.68,0.00059726,120]
[342727713,1732086736304,-500.0,0.00059726,120]
[342727714,1732086736314,-2031.6,0.00059726,120]
[342727715,1732086736327,-2936.91,0.00059726,120]
[342727716,1732086736336,-206.18501247,0.00059726,120]
[342727717,1732086736345,-720.2,0.00059726,120]
[342727718,1732086736354,-2810.53,0.00059726,120]
[342727719,1732086736363,-1822.63,0.00059726,120]
[342727720,1732086736373,-1273.99,0.00059726,120]
[342727721,1732086736386,-709.1739639,0.00059726,120]
[342727722,1732086736397,-711.44,0.00059726,120]
[342727723,1732086736406,-729.82,0.00059726,120]
[342727724,1732086736416,-2955.44,0.00059726,120]
[342727725,1732086736425,-2080.78,0.00059726,120]
[342727726,1732086736434,-1918.47,0.00059726,120]
[342727727,1732086736443,-606.63,0.00059726,120]
[342727728,1732086736452,-500.0,0.00059726,120]
[342727729,1732086736461,-1137.2,0.00059726,3]
[342727730,1732086736470,-2847.53,0.00059726,120]
[342727731,1732086736479,-500.0,0.0005975,120]
[342727732,1732086736488,-500.0,0.0005975,120]
[342727733,1732086736497,-800.0,0.0005975,120]
[342727734,1732086736506,-1900.0,0.0005975,120]
[342727735,1732086736515,-500.0,0.000598,120]
[342727736,1732086736524,-289090.9154892,0.0005988,30]
[342727737,1732086736533,-151.0,0.0005988,120]
[342727738,1732086736543,-151.0,0.0005988,120]
[342727739,1732086736553,-151.0,0.0005988,30]
[342727740,1732086736562,-151.0,0.0005988,120]
[342727741,1732086736572,-429.085224,0.0005988,120]
[342727742,1732086736581,-426.993109,0.0005988,120]
[342727743,1732086736590,-429.085224,0.0005988,120]
[342727744,1732086736600,-426.993109,0.0005988,120]
[342727745,1732086736610,-151.535178,0.0005988,120]
[342727746,1732086736621,-1299.056677,0.0005988,120]
[342727747,1732086736630,-151.0,0.0005988,120]
[342727748,1732086736640,-1299.056677,0.0005988,120]
[342727749,1732086736649,-151.0,0.0005988,120]
[342727750,1732086736659,-151.0,0.0005988,120]
[342727751,1732086736668,-151.0,0.0005988,120]
[342727752,1732086736677,-166.933254,0.0005988,120]
[342727753,1732086736687,-151.0,0.0005988,120]
[342727754,1732086736696,-166.933254,0.0005988,120]
[342727755,1732086736707,-151.0,0.0005988,120]
[342727756,1732086736716,-151.0,0.0005988,120]
[342727757,1732086736726,-151.0,0.0005988,120]
[342727758,1732086736735,-151.0,0.0005988,120]
[342727759,1732086736745,-151.0,0.0005988,7]
[342727760,1732086736755,-182.966732,0.0005988,120]
[342727761,1732086736764,-182.966732,0.0005988,120]
[342727762,1732086736774,-151.0,0.0005988,120]
[342727763,1732086736784,-151.0,0.0005988,120]
[342727764,1732086736793,-151.0,0.0005988,120]
[342727765,1732086736803,-151.0,0.0005988,120]
[342727766,1732086736813,-2972.94341432,0.000599,120]
[342727767,1732086736822,-152.34069944,0.0005994,120]
[342727768,1732086736832,-150.0,0.0005994,120]
[342727769,1732086736842,-150.0,0.0005994,120]
[342727770,1732086736851,-150.0,0.0005994,120]
[342727771,1732086736861,-150.0,0.0005994,120]
[342727772,1732086736874,-150.0,0.0005994,120]
[342727773,1732086736883,-150.0,0.0005994,120]
[342727774,1732086736893,-150.0,0.0005994,120]
[342727775,1732086736902,-150.0,0.0005994,120]
[342727776,1732086736912,-150.0,0.0005994,120]
[342727777,1732086736921,-150.0,0.0005994,120]
[342727778,1732086736931,-150.0,0.0005994,120]
[342727779,1732086736940,-150.0,0.0005994,120]
[342727780,1732086736949,-150.0,0.0005994,120]
[342727781,1732086736959,-214.0,0.0005996,30]
[342727782,1732086736968,-204.0,0.0005996,30]
[342727783,1732086736977,-215.0,0.0005996,120]
[342727784,1732086736987,-201.0,0.0005996,120]
[342727785,1732086736995,-204.0,0.0005996,120]
[342727786,1732086737004,-405.36495411,0.00059999,120]
[342727787,1732086737014,-151.0,0.00059999,120]
[342727788,1732086737023,-151.0,0.00059999,120]
[342727789,1732086737032,-151.0,0.00059999,120]
[342727790,1732086737041,-151.0,0.00059999,120]
[342727791,1732086737051,-151.0,0.00059999,120]
[342727792,1732086737060,-151.0,0.00059999,120]
[342727793,1732086737070,-151.0,0.00059999,120]
[342727794,1732086737079,-151.146848,0.00059999,120]
[342727795,1732086737216,-151.016537,0.00059999,120]
[342727796,1732086737226,-151.0,0.00059999,120]
[342727797,1732086737235,-151.0,0.00059999,120]
[342727798,1732086737244,-151.0,0.00059999,120]
[342727799,1732086737253,-151.0,0.00059999,120]
[342727800,1732086737263,-151.0,0.00059999,120]
[342727801,1732086737271,-151.0,0.00059999,120]
[342727802,1732086737280,-151.0,0.00059999,120]
[342727803,1732086737289,-151.0,0.00059999,120]
[342727804,1732086737299,-296.788879,0.00059999,120]
[342727805,1732086737308,-151.0,0.00059999,120]
[342727806,1732086737318,-296.788879,0.00059999,120]
[342727807,1732086737331,-151.0,0.00059999,120]
[342727808,1732086737340,-151.0,0.00059999,120]
[342727809,1732086737350,-151.0,0.00059999,120]
[342727810,1732086737359,-151.0,0.00059999,120]
[342727811,1732086737371,-966.97,0.00059999,120]
[342727812,1732086737380,-1703.66,0.00059999,120]
[342727813,1732086737388,-151.0,0.00059999,120]
[342727814,1732086737399,-151.0,0.00059999,120]
[342727815,1732086737410,-151.0,0.00059999,120]
[342727816,1732086737420,-151.0,0.00059999,120]
[342727817,1732086737429,-2720.0,0.00059999,120]
[342727818,1732086737438,-174.63591457,0.00059999,120]
[342727819,1732086737447,-151.0,0.00059999,120]
[342727820,1732086737457,-151.0,0.00059999,120]
[342727821,1732086737466,-151.0,0.00059999,120]
[342727822,1732086737475,-829.63,0.00059999,120]
[342727823,1732086737485,-151.0,0.00059999,120]
[342727824,1732086737494,-151.0,0.00059999,120]
[342727825,1732086737503,-206.5,0.00059999,120]
[342727826,1732086737512,-620.27,0.00059999,120]
[342727827,1732086737522,-2345.32,0.00059999,120]
[342727828,1732086737531,-151.0,0.00059999,120]
[342727829,1732086737540,-1166.49,0.00059999,120]
[342727830,1732086737549,-151.0,0.00059999,120]
[342727831,1732086737559,-734.6,0.00059999,120]
[342727832,1732086737568,-2844.38,0.00059999,120]
[342727833,1732086737578,-1035.53,0.00059999,120]
[342727834,1732086737587,-1318.23,0.00059999,120]
[342727835,1732086737597,-444.666432,0.00059999,120]
[342727836,1732086737606,-151.0,0.00059999,120]
[342727837,1732086737616,-444.666432,0.00059999,120]
[342727838,1732086737628,-151.0,0.00059999,120]
[342727839,1732086737637,-400.36,0.00059999,7]
[342727840,1732086737647,-503.21,0.00059999,120]
[342727841,1732086737656,-150.0,0.00059999,120]
[342727842,1732086737666,-165.363288,0.00059999,120]
[342727843,1732086737675,-2000.0,0.00059999,120]
[342727844,1732086737684,-165.363288,0.00059999,120]
[342727845,1732086737693,-2333.06,0.00059999,120]
[342727846,1732086737703,-164.952267,0.00059999,120]
[342727847,1732086737712,-164.952267,0.00059999,120]
[342727848,1732086737721,-151.066857,0.00059999,120]
[342727849,1732086737731,-500.0,0.00059999,120]
[342727850,1732086737740,-151.0,0.00059999,7]
[342727851,1732086737750,-590.38769574,0.00059999,120]
[342727852,1732086737759,-3055.61,0.00059999,120]
[342727853,1732086737768,-151.0,0.00059999,120]
[342727854,1732086737778,-151.191839,0.00059999,120]
[342727855,1732086737787,-3168.55,0.00059999,120]
[342727856,1732086737796,-1697.92,0.00059999,120]
[342727857,1732086737805,-151.0,0.00059999,120]
[342727858,1732086737815,-151.0,0.00059999,2]
[342727859,1732086737825,-151.0,0.00059999,120]
[342727860,1732086737835,-151.0,0.00059999,120]
[342727861,1732086737844,-151.0,0.00059999,120]
[342727862,1732086737854,-151.0,0.00059999,120]
[342727863,1732086737863,-181.178498,0.00059999,120]
[342727864,1732086737874,-500.0,0.00059999,120]
[342727865,1732086737884,-181.178498,0.00059999,120]
[342727866,1732086737894,-3805.942296,0.00059999,120]
[342727867,1732086737904,-3805.942296,0.00059999,120]
[342727868,1732086737913,-163.454904,0.00059999,120]
[342727869,1732086737923,-151.0,0.00059999,120]
[342727870,1732086737932,-500.0,0.00059999,120]
[342727871,1732086737942,-151.0,0.00059999,120]
[342727872,1732086737951,-151.0,0.00059999,120]
[342727873,1732086737960,-151.0,0.00059999,120]
[342727874,1732086737970,-500.0,0.00059999,120]
[342727875,1732086737980,-151.0,0.00059999,120]
[342727876,1732086737989,-176.42264,0.00059999,120]
[342727877,1732086737998,-151.0,0.00059999,120]
[342727878,1732086738007,-151.0,0.00059999,120]
[342727879,1732086738017,-176.42264,0.00059999,120]
[342727880,1732086738026,-151.0,0.00059999,120]
[342727881,1732086738036,-659.42,0.00059999,120]
[342727882,1732086738046,-2717.09,0.00059999,120]
[342727883,1732086738055,-210.636193,0.00059999,120]
[342727884,1732086738065,-620.70654594,0.00059999,120]
[342727885,1732086738074,-210.636193,0.00059999,120]
[342727886,1732086738084,-199.657164,0.00059999,120]
[342727887,1732086738093,-151.0,0.00059999,110]
[342727888,1732086738103,-151.0,0.00059999,120]
[342727889,1732086738112,-199.657164,0.00059999,120]
[342727890,1732086738123,-151.07262,0.00059999,120]
[342727891,1732086738133,-798.52,0.00059999,120]
[342727892,1732086738143,-982.26,0.00059999,120]
[342727893,1732086738152,-151.0,0.00059999,120]
[342727894,1732086738162,-172.234371,0.00059999,120]
[342727895,1732086738172,-707.74,0.00059999,120]
[342727896,1732086738181,-4470.82,0.00059999,120]
[342727897,1732086738191,-151.0,0.00059999,120]
[342727898,1732086738200,-151.0,0.00059999,120]
[342727899,1732086738210,-500.0,0.00059999,120]
[342727900,1732086738219,-650.76,0.00059999,21]
[342727901,1732086738228,-2268.24,0.00059999,120]
[342727902,1732086738238,-3957.68,0.00059999,60]
[342727903,1732086738247,-151.0,0.00059999,120]
[342727904,1732086738256,-717.59,0.00059999,120]
[342727905,1732086738266,-3094.65,0.00059999,120]
[342727906,1732086738275,-998.06,0.00059999,120]
[342727907,1732086738284,-1516.88,0.00059999,120]
[342727908,1732086738293,-617.47,0.00059999,120]
[342727909,1732086738303,-2604.2,0.00059999,120]
[342727910,1732086738312,-151.0,0.00059999,120]
[342727911,1732086738323,-500.17,0.00059999,120]
[342727912,1732086738334,-635.36,0.00059999,120]
[342727913,1732086738344,-700.75,0.00059999,120]
[342727914,1732086738353,-151.0,0.00059999,120]
[342727915,1732086738364,-505.72,0.00059999,120]
[342727916,1732086738375,-500.0,0.00059999,120]
[342727917,1732086738384,-3206.56,0.00059999,120]
[342727918,1732086738393,-946.93,0.00059999,120]
[342727919,1732086738407,-508.31,0.00059999,120]
[342727920,1732086738416,-2581.57,0.00059999,120]
[342727921,1732086738426,-1301.4,0.00059999,120]
[342727922,1732086738436,-5192.93,0.00059999,120]
[342727923,1732086738446,-852.9,0.00059999,120]
[342727924,1732086738455,-2774.17,0.00059999,120]
[342727925,1732086738464,-3061.68,0.00059999,120]
[342727926,1732086738474,-418.29,0.00059999,120]
[342727927,1732086738483,-2031.6,0.00059999,120]
[342727928,1732086738492,-2936.91,0.00059999,120]
[342727929,1732086738502,-720.2,0.00059999,120]
[342727930,1732086738511,-2810.53,0.00059999,120]
[342727931,1732086738521,-1822.63,0.00059999,120]
[342727932,1732086738530,-1273.99,0.00059999,120]
[342727933,1732086738540,-711.44,0.00059999,120]
[342727934,1732086738549,-729.82,0.00059999,120]
[342727935,1732086738558,-2955.44,0.00059999,120]
[342727936,1732086738568,-2080.78,0.00059999,120]
[342727937,1732086738577,-1918.47,0.00059999,120]
[342727938,1732086738587,-606.63,0.00059999,120]
[342727939,1732086738596,-500.0,0.00059999,120]
[342727940,1732086738605,-1137.2,0.00059999,3]
[342727941,1732086738615,-2847.53,0.00059999,120]
[342727942,1732086738625,-51299.409501,0.0006,120]
[342727943,1732086738634,-1007.31496606,0.0006,30]
[342727944,1732086738644,-11000.0,0.0006,120]
[342727945,1732086738654,-9072.06539356,0.0006,120]
[342727946,1732086738664,-818.0,0.0006,120]
[342727947,1732086738673,-2000.0,0.0006,4]
[342727948,1732086738683,-10564.68834439,0.0006,120]
[342727949,1732086738692,-19128.51158428,0.0006,30]
[342727950,1732086738702,-2000.63,0.0006,120]
[342727951,1732086738711,-500.0,0.0006,120]